fUST/lending_fUST_20250727
["ID","MTS","AMOUNT","RATE_DAILY","PERIOD"]
[375262386,1753603870189,-497.78,0.00021095,2]
[375262387,1753603870199,-1881.94,0.00021095,2]
[375262388,1753603870208,-460.0,0.00021095,2]
[375262389,1753603870218,-460.0,0.00021095,2]
[375262390,1753603870227,-563.37,0.00021095,2]
[375262391,1753603870238,-1908.99,0.00021095,2]
[375262392,1753603870247,-2216.68,0.00021095,2]
[375262393,1753603870257,-460.0,0.00021095,2]
[375262394,1753603870268,-460.0,0.00021095,2]
[375262395,1753603870278,-460.0,0.00021095,2]
[375262396,1753603870287,-460.0,0.00021095,2]
[375262397,1753603870296,-457.75126319,0.00021095,2]
[375262398,1753603870305,-455.0,0.00021095,2]
[375262399,1753603870314,-500.0,0.00021096,2]
[375262400,1753603870323,-420.0,0.00021096,2]
[375262401,1753603870332,-1378.46313003,0.00021141,4]
[375262402,1753603870342,-500.0,0.00021164,2]
[375262403,1753603870351,-199.615995,0.00021185,2]
[375262404,1753603870360,-1759.20570417,0.00021274,2]
[375262405,1753603870471,-1378.46313003,0.00021348,5]
[375262406,1753603870481,-460.0,0.00021369,2]
[375262407,1753603870491,-460.0,0.00021369,2]
[375262408,1753603870501,-460.0,0.00021369,2]
[375262409,1753603870510,-485.89,0.00021369,2]
[375262410,1753603870520,-1977.82,0.00021369,2]
[375262411,1753603870529,-460.0,0.00021369,2]
[375262412,1753603870538,-460.0,0.00021369,2]
[375262413,1753603870547,-460.0,0.00021369,2]
[375262414,1753603870558,-460.0,0.00021369,2]
[375262415,1753603870568,-460.0,0.00021369,2]
[375262416,1753603870577,-460.0,0.00021369,2]
[375262417,1753603870586,-460.0,0.00021369,2]
[375262418,1753603870596,-347.12730531,0.00021369,2]
[375262419,1753603870605,-460.0,0.00021369,2]
[375262420,1753603870613,-460.0,0.00021369,2]
[375262421,1753603870623,-460.0,0.00021369,2]
[375262422,1753603870633,-517.46,0.00021369,2]
[375262423,1753603870642,-460.0,0.00021369,2]
[375262424,1753603870651,-460.0,0.00021369,2]
[375262425,1753603870660,-460.0,0.00021369,2]
[375262426,1753603870669,-460.0,0.00021369,2]
[375262427,1753603870678,-460.0,0.00021369,2]
[375262428,1753603870688,-460.0,0.00021369,2]
[375262429,1753603870698,-466.42546442,0.00021369,2]
[375262430,1753603870708,-381.62711531,0.00021369,2]
[375262431,1753603870718,-798.95,0.00021369,2]
[375262432,1753603870727,-950.23,0.00021369,2]
[375262433,1753603870738,-1795.99,0.00021369,2]
[375262434,1753603870749,-547.03150493,0.00021369,2]
[375262435,1753603870758,-722.7,0.00021369,2]
[375262436,1753603870767,-460.0,0.00021369,2]
[375262437,1753603870776,-289.11157121,0.00021369,2]
[375262438,1753603870785,-460.0,0.00021369,2]
[375262439,1753603870795,-460.0,0.00021369,2]
[375262440,1753603870804,-460.0,0.00021369,2]
[375262441,1753603870815,-525.14,0.00021369,2]
[375262442,1753603870824,-462.24,0.00021369,2]
[375262443,1753603870833,-460.0,0.00021369,2]
[375262444,1753603870843,-282.34658908,0.00021369,2]
[375262445,1753603870852,-581.11,0.00021369,2]
[375262446,1753603870862,-460.0,0.00021369,2]
[375262447,1753603870872,-151.0,0.00021369,2]
[375262448,1753603870882,-460.0,0.00021369,2]
[375262449,1753603870891,-506.11,0.00021369,2]
[375262450,1753603870901,-175.91603106,0.00021369,2]
[375262451,1753603870911,-460.0,0.00021369,2]
[375262452,1753603870920,-460.0,0.00021369,2]
[375262453,1753603870930,-460.0,0.00021369,2]
[375262454,1753603870940,-204.123075,0.00021369,2]
[375262455,1753603870950,-204.123075,0.00021369,2]
[375262456,1753603870960,-460.0,0.00021369,2]
[375262457,1753603870970,-460.0,0.00021369,2]
[375262458,1753603870980,-460.0,0.00021369,2]
[375262459,1753603870991,-460.0,0.00021369,2]
[375262460,1753603871000,-740.36,0.00021369,2]
[375262461,1753603871010,-1704.12,0.00021369,2]
[375262462,1753603871019,-460.0,0.00021369,2]
[375262463,1753603871029,-460.0,0.00021369,2]
[375262464,1753603871039,-460.0,0.00021369,2]
[375262465,1753603871048,-941.74,0.00021369,2]
[375262466,1753603871058,-583.94728716,0.00021369,2]
[375262467,1753603871068,-507.48798527,0.00021369,2]
[375262468,1753603871190,-916.77407425,0.00019178,2]
[375262469,1753603871203,-595.77128937,0.00019178,2]
[375262470,1753603871215,-795.77463638,0.00019178,2]
[375262471,1753603871225,-460.0,0.00019178,2]
[375262472,1753603871234,-460.0,0.00019178,2]
[375262473,1753603871244,-991.68742522,0.00019452,2]
[375262474,1753603871327,-204.58163925,0.00019452,2]
[375262475,1753603871586,-460.0,0.00019178,2]
[375262476,1753603871597,-1112.05093553,0.00019452,2]
[375262477,1753603871607,-340.45414761,0.00019452,2]
[375262478,1753603871617,-460.0,0.00019452,2]
[375262479,1753603871627,-460.0,0.00019452,2]
[375262480,1753603871637,-460.0,0.00019726,2]
[375262481,1753603871647,-2308.32,0.00019726,2]
[375262482,1753603871657,-460.0,0.00019726,2]
[375262483,1753603871668,-460.0,0.00019726,2]
[375262484,1753603871679,-460.0,0.0002,2]
[375262485,1753603871688,-2308.32,0.0002,2]
[375262486,1753603871698,-460.0,0.0002,2]
[375262487,1753603871707,-460.0,0.0002,2]
[375262488,1753603871716,-733.84,0.00020273,2]
[375262489,1753603871728,-460.0,0.00020273,2]
[375262490,1753603871742,-2308.32,0.00020273,2]
[375262491,1753603871751,-460.0,0.00020273,2]
[375262492,1753603871762,-227.43050314,0.00020273,2]
[375262493,1753603871772,-733.84,0.00020547,2]
[375262494,1753603871783,-460.0,0.00020547,2]
[375262495,1753603871793,-2308.32,0.00020547,2]
[375262496,1753603871802,-460.0,0.00020547,2]
[375262497,1753603871813,-733.84,0.00020821,2]
[375262498,1753603871825,-460.0,0.00020821,2]
[375262499,1753603871835,-2308.32,0.00020821,2]
[375262500,1753603871845,-460.0,0.00020821,2]
[375262501,1753603871855,-460.0,0.00020821,2]
[375262502,1753603871866,-733.84,0.00021095,2]
[375262503,1753603871876,-460.0,0.00021095,2]
[375262504,1753603871887,-460.0,0.00021095,2]
[375262505,1753603871899,-460.0,0.00021095,2]
[375262506,1753603871908,-2308.32,0.00021095,2]
[375262507,1753603871918,-489.66201473,0.00021369,2]
[375262508,1753603871928,-460.0,0.00021369,2]
[375262509,1753603871938,-460.0,0.00021369,2]
[375262510,1753603871948,-460.0,0.00021369,2]
[375262511,1753603871957,-460.0,0.00021369,2]
[375262512,1753603871967,-460.0,0.00021369,2]
[375262513,1753603871977,-460.0,0.00021369,2]
[375262514,1753603871987,-460.0,0.00021369,2]
[375262515,1753603871997,-799.72,0.00021369,2]
[375262516,1753603872007,-460.0,0.00021369,2]
[375262517,1753603872017,-720.19,0.00021369,2]
[375262518,1753603872028,-507.29,0.00021369,2]
[375262519,1753603872038,-822.75,0.00021369,2]
[375262520,1753603872048,-460.0,0.00021369,2]
[375262521,1753603872059,-196.0970772,0.00021369,2]
[375262522,1753603872069,-460.0,0.00021369,2]
[375262523,1753603872079,-588.2,0.00021369,2]
[375262524,1753603872089,-460.0,0.00021369,2]
[375262525,1753603872100,-2525.44,0.00021369,2]
[375262526,1753603872109,-460.0,0.00021369,2]
[375262527,1753603872119,-460.0,0.00021369,2]
[375262528,1753603872128,-460.0,0.00021369,2]
[375262529,1753603872138,-151.0,0.00021369,2]
[375262530,1753603872148,-485.37,0.00021369,2]
[375262531,1753603872158,-1082.98,0.00021369,2]
[375262532,1753603872168,-460.0,0.00021369,2]
[375262533,1753603872178,-1890.06,0.00021369,2]
[375262534,1753603872188,-460.0,0.00021369,2]
[375262535,1753603872198,-460.0,0.00021369,2]
[375262536,1753603872208,-471.25,0.00021369,2]
[375262537,1753603872231,-460.0,0.00021369,2]
[375262538,1753603872242,-460.0,0.00021369,2]
[375262539,1753603872252,-597.67,0.00021369,2]
[375262540,1753603872262,-460.0,0.00021369,2]
[375262541,1753603872272,-460.0,0.00021369,2]
[375262542,1753603872283,-460.0,0.00021369,2]
[375262543,1753603872293,-460.0,0.00021369,2]
[375262544,1753603872303,-1475.41,0.00021369,2]
[375262545,1753603872312,-1945.25,0.00021369,2]
[375262546,1753603872322,-460.0,0.00021369,2]
[375262547,1753603872332,-2242.41,0.00021369,2]
[375262548,1753603872342,-460.0,0.00021369,2]
[375262549,1753603872351,-680.69,0.00021369,2]
[375262550,1753603872361,-5460.89,0.00021369,2]
[375262551,1753603872372,-460.0,0.00021369,2]
[375262552,1753603872382,-460.0,0.00021369,2]
[375262553,1753603872392,-869.3,0.00021369,2]
[375262554,1753603872402,-460.0,0.00021369,2]
[375262555,1753603872412,-1138.4,0.00021369,2]
[375262556,1753603872422,-460.0,0.00021369,2]
[375262557,1753603872432,-2017.12,0.00021369,2]
[375262558,1753603872442,-460.0,0.00021369,2]
[375262559,1753603872452,-460.0,0.00021369,2]
[375262560,1753603872461,-460.0,0.00021369,2]
[375262561,1753603872471,-1044.02,0.00021369,2]
[375262562,1753603872481,-460.0,0.00021369,2]
[375262563,1753603872491,-460.0,0.00021369,2]
[375262564,1753603872501,-460.0,0.00021369,2]
[375262565,1753603872511,-460.0,0.00021369,2]
[375262566,1753603872521,-460.0,0.00021369,2]
[375262567,1753603872531,-460.0,0.00021369,2]
[375262568,1753603872541,-460.0,0.00021369,2]
[375262569,1753603872551,-460.0,0.00021369,2]
[375262570,1753603872561,-460.0,0.00021369,2]
[375262571,1753603872570,-460.0,0.00021369,2]
[375262572,1753603872580,-460.0,0.00021369,2]
[375262573,1753603872589,-497.78,0.00021369,2]
[375262574,1753603872599,-1881.94,0.00021369,2]
[375262575,1753603872609,-460.0,0.00021369,2]
[375262576,1753603872619,-460.0,0.00021369,2]
[375262577,1753603872629,-563.37,0.00021369,2]
[375262578,1753603872638,-1908.99,0.00021369,2]
[375262579,1753603872648,-226.209117,0.00021369,2]
[375262580,1753603872658,-226.209117,0.00021369,2]
[375262581,1753603872667,-2216.68,0.00021369,2]
[375262582,1753603872677,-460.0,0.00021369,2]
[375262583,1753603872687,-460.0,0.00021369,2]
[375262584,1753603872696,-460.0,0.00021369,2]
[375262585,1753603872707,-460.0,0.00021369,2]
[375262586,1753603872717,-733.84,0.00021369,2]
[375262587,1753603872727,-460.0,0.00021369,2]
[375262588,1753603872739,-437.00240351,0.00021369,2]
[375262589,1753603872751,-460.0,0.00021369,2]
[375262590,1753603872761,-500.0,0.0002137,2]
[375262591,1753603872772,-420.0,0.0002137,2]
[375262592,1753603872782,-500.0,0.000214,2]
[375262593,1753603872792,-460.0,0.00021535,2]
[375262594,1753603872802,-1378.46313003,0.00021555,5]
[375262595,1753603872811,-954.58,0.000216,2]
[375262596,1753603872821,-150.0,0.00021605,2]
[375262597,1753603872831,-460.0,0.00021643,2]
[375262598,1753603872844,-366.22859622,0.00021643,2]
[375262599,1753603872853,-460.0,0.00021643,2]
[375262600,1753603872863,-485.89,0.00021643,2]
[375262601,1753603872874,-1977.82,0.00021643,2]
[375262602,1753603872883,-460.0,0.00021643,2]
[375262603,1753603872893,-460.0,0.00021643,2]
[375262604,1753603872905,-460.0,0.00021643,2]
[375262605,1753603872919,-460.0,0.00021643,2]
[375262606,1753603872929,-600.67441127,0.00021643,2]
[375262607,1753603872939,-460.0,0.00021643,2]
[375262608,1753603872948,-460.0,0.00021643,2]
[375262609,1753603872958,-460.0,0.00021643,2]
[375262610,1753603872967,-517.46,0.00021643,2]
[375262611,1753603872977,-505.49423003,0.00021643,2]
[375262612,1753603872986,-460.0,0.00021643,2]
[375262613,1753603872996,-460.0,0.00021643,2]
[375262614,1753603873006,-482.46981579,0.00021643,2]
[375262615,1753603873016,-460.0,0.00021643,2]
[375262616,1753603873025,-460.0,0.00021643,2]
[375262617,1753603873036,-798.95,0.00021643,2]
[375262618,1753603873045,-950.23,0.00021643,2]
[375262619,1753603873056,-1795.99,0.00021643,2]
[375262620,1753603873065,-722.7,0.00021643,2]
[375262621,1753603873074,-460.0,0.00021643,2]
[375262622,1753603873084,-460.0,0.00021643,2]
[375262623,1753603873093,-581.11,0.00021643,2]
[375262624,1753603873103,-460.0,0.00021643,2]
[375262625,1753603873113,-506.11,0.00021643,2]
[375262626,1753603873125,-460.0,0.00021643,2]
[375262627,1753603873135,-460.0,0.00021643,2]
[375262628,1753603873145,-460.0,0.00021643,2]
[375262629,1753603873155,-460.0,0.00021643,2]
[375262630,1753603873165,-460.0,0.00021643,2]
[375262631,1753603873175,-740.36,0.00021643,2]
[375262632,1753603873185,-547.44605084,0.00021643,2]
[375262633,1753603873810,-460.0,0.00019178,2]
[375262634,1753603873824,-382.94405126,0.00019178,2]
[375262637,1753603973154,150.0,0.00018757,2]
[375262638,1753603991879,19850.0,0.00018777,2]
[375262639,1753603991905,10150.0,0.00018777,2]
[375262640,1753604009923,5000.0,0.0001885,2]
[375262642,1753604025153,4850.0,0.0001885,2]
[375262643,1753604025178,150.0,0.0001885,2]
[375262644,1753604040964,5000.0,0.0001885,2]
[375262645,1753604047584,150.0,0.00018746,2]
[375262646,1753604050814,150.0,0.0002117,30]
[375262647,1753604057374,5000.0,0.0001885,2]
[375262648,1753604072675,5000.0,0.0001885,2]
[375262649,1753604088271,4700.0,0.0001885,2]
[375262650,1753604088295,300.0,0.0001885,2]
[375262651,1753604104669,5000.0,0.0001885,2]
[375262653,1753604120778,5000.0,0.0001885,2]
[375262654,1753604121494,150.0,0.00018788,2]
[375262655,1753604126035,150.0,0.00021133,30]
[375262656,1753604126470,150.0,0.00022139,30]
[375262657,1753604136260,5000.0,0.0001885,2]
[375262658,1753604144155,1251.56801892,0.0001885,2]
[375262659,1753604152826,3298.43198108,0.0001885,2]
[375262660,1753604152850,1701.56801892,0.0001885,2]
[375262661,1753604168723,5000.0,0.0001885,2]
[375262662,1753604184432,5000.0,0.0001885,2]
[375262663,1753604198261,150.0,0.00018745,2]
[375262664,1753604199861,5000.0,0.0001885,2]
[375262665,1753604200852,185.813095,0.00018597,2]
[375262666,1753604201353,227.51711776,0.00018602,2]
[375262667,1753604202807,150.0,0.00021325,30]
[375262668,1753604203233,150.0,0.0002234,30]
[375262669,1753604215529,2735.10176832,0.0001885,2]
[375262670,1753604215553,2264.89823168,0.0001885,2]
[375262671,1753604274443,150.0,0.00018743,2]
[375262672,1753604277682,150.0,0.00021722,30]
[375262675,1753604348592,150.0,0.00018749,2]
[375262677,1753604391889,1022.8757514,0.00018172,2]
[375262678,1753604422755,150.0,0.00018729,2]
[375262679,1753604503623,155.09158016,0.00018594,2]
[375262680,1753604574577,150.0,0.00018763,2]
[375262681,1753604647036,150.0,0.0001877,2]
[375262682,1753604648596,150.0,0.00021719,30]
[375262683,1753604705052,236.668906,0.00013699,2]
[375262685,1753604718036,150.0,0.00018825,2]
[375262686,1753604758344,-1811.58152781,0.00018895,2]
[375262687,1753604759076,-36.13174559,0.00018895,2]
[375262688,1753604759098,-208.10849459,0.00018978,2]
[375262689,1753604759118,-831.46357771,0.00018995,2]
[375262690,1753604759141,-826.0542242,0.00019073,2]
[375262691,1753604759162,-24.09750992,0.00019078,2]
[375262692,1753604785126,6264.8254856,0.00018169,2]
[375262693,1753604788086,150.0,0.00018752,2]
[375262694,1753604796695,5000.0,0.0001885,2]
[375262695,1753604812207,4005.64004516,0.0001885,2]
[375262696,1753604812230,994.35995484,0.0001885,2]
[375262698,1753604827075,-248.11575017,0.00018978,2]
[375262699,1753604827097,-160.0,0.00019078,2]
[375262700,1753604827118,-1467.52532481,0.00019078,2]
[375262701,1753604827139,-1200.0,0.00019168,2]
[375262702,1753604827159,-300.0,0.00019168,2]
[375262703,1753604827182,-741.3,0.00019168,3]
[375262704,1753604827204,-1200.0,0.00019169,2]
[375262705,1753604827226,-300.0,0.00019169,2]
[375262706,1753604827389,-6640.30082398,0.0001917,2]
[375262707,1753604829778,5000.0,0.0001885,2]
[375262708,1753604838144,-1877.40039341,0.0001917,2]
[375262709,1753604845146,1541.34310926,0.0001885,2]
[375262710,1753604853244,5000.0,0.0001885,2]
[375262711,1753604860450,150.0,0.00018747,2]
[375262712,1753604862374,2010.31208026,0.0001885,2]
[375262713,1753604878836,2989.68791974,0.0001885,2]
[375262718,1753604931853,150.0,0.00018379,2]
[375262751,1753605031856,-509.81261403,0.000189,2]
[375262759,1753605031911,-44.49643778,0.000189,2]
[375262762,1753605031920,-722.79744614,0.00019073,2]
[375262765,1753605031929,-300.0,0.00019077,2]
[375262768,1753605031938,-12.01255692,0.00019077,2]
[375262771,1753605031949,-197.98744308,0.00019077,2]
[375262773,1753605031959,-1174.02025988,0.00019078,2]
[375262775,1753605031968,-6070.00567508,0.00019078,2]
[375262777,1753605031978,-47835.4177149,0.0001917,2]
[375262779,1753605031987,-500.0,0.00019173,2]
[375262781,1753605031996,-403.8877052,0.00019173,2]
[375262782,1753605032006,-500.0,0.00019173,2]
[375262784,1753605032015,-500.0,0.00019173,2]
[375262786,1753605032024,-500.0,0.00019173,2]
[375262788,1753605032033,-500.0,0.00019173,2]
[375262790,1753605032043,-500.0,0.00019173,2]
[375262792,1753605032051,-500.0,0.00019173,2]
[375262795,1753605032060,-500.0,0.00019173,2]
[375262797,1753605032070,-333.56108571,0.00019177,2]
[375262799,1753605032079,-199.49966549,0.00019177,2]
[375262801,1753605032088,-500.0,0.00019177,2]
[375262803,1753605032097,-383.63378105,0.00019177,2]
[375262805,1753605032107,-500.0,0.00019177,2]
[375262807,1753605032116,-460.0,0.00019178,2]
[375262809,1753605032125,-4931.09,0.00019178,2]
[375262811,1753605032135,-460.0,0.00019178,2]
[375262813,1753605032144,-460.57828128,0.00019178,2]
[375262815,1753605032154,-460.0,0.00019178,2]
[375262817,1753605032163,-460.0,0.00019178,2]
[375262819,1753605032172,-460.0,0.00019178,2]
[375262821,1753605032182,-1302.22,0.00019178,2]
[375262823,1753605032191,-460.0,0.00019178,2]
[375262825,1753605032200,-460.0,0.00019178,2]
[375262827,1753605032210,-460.0,0.00019178,2]
[375262829,1753605032219,-462.64752173,0.00019178,2]
[375262831,1753605032229,-460.0,0.00019178,2]
[375262833,1753605032238,-460.0,0.00019178,2]
[375262835,1753605032247,-460.0,0.00019178,2]
[375262837,1753605032257,-460.0,0.00019178,2]
[375262839,1753605032267,-570.30389638,0.00019178,2]
[375262841,1753605032277,-599.68352466,0.00019178,2]
[375262843,1753605032287,-475.43559239,0.00019178,2]
[375262845,1753605032296,-460.0,0.00019178,2]
[375262847,1753605032305,-460.0,0.00019178,2]
[375262849,1753605032315,-299.1726966,0.00019178,2]
[375262851,1753605032325,-460.0,0.00019178,2]
[375262853,1753605032334,-460.0,0.00019178,2]
[375262855,1753605032343,-234.19080196,0.00019178,2]
[375262857,1753605032352,-460.0,0.00019178,2]
[375262859,1753605032362,-1673.53,0.00019178,2]
[375262861,1753605032372,-460.0,0.00019178,2]
[375262863,1753605032382,-460.0,0.00019178,2]
[375262865,1753605032391,-460.0,0.00019178,2]
[375262867,1753605032401,-460.0,0.00019178,2]
[375262868,1753605032410,-460.0,0.00019178,2]
[375262870,1753605032419,-460.0,0.00019178,2]
[375262872,1753605032429,-460.0,0.00019178,2]
[375262874,1753605032438,-460.0,0.00019178,2]
[375262875,1753605032447,-460.0,0.00019178,2]
[375262876,1753605032460,-460.0,0.00019178,2]
[375262877,1753605032470,-460.0,0.00019178,2]
[375262878,1753605032479,-460.0,0.00019178,2]
[375262879,1753605032488,-460.0,0.00019178,2]
[375262880,1753605032499,-460.0,0.00019178,2]
[375262881,1753605032509,-460.0,0.00019178,2]
[375262882,1753605032518,-460.0,0.00019178,2]
[375262883,1753605032528,-460.0,0.00019178,2]
[375262884,1753605032540,-475.70343396,0.00019178,2]
[375262886,1753605032550,-460.0,0.00019178,2]
[375262888,1753605032560,-460.0,0.00019178,2]
[375262891,1753605032570,-460.0,0.00019178,2]
[375262893,1753605032580,-460.0,0.00019178,2]
[375262896,1753605032589,-465.29924931,0.00019178,2]
[375262899,1753605032598,-460.0,0.00019178,2]
[375262902,1753605032609,-239.94166997,0.00019178,2]
[375262904,1753605032619,-460.0,0.00019178,2]
[375262906,1753605032629,-460.0,0.00019178,2]
[375262908,1753605032638,-460.0,0.00019178,2]
[375262910,1753605032648,-461.77495199,0.00019178,2]
[375262912,1753605032657,-460.0,0.00019178,2]
[375262914,1753605032666,-460.0,0.00019178,2]
[375262916,1753605032676,-495.68720498,0.00019178,2]
[375262918,1753605032686,-460.0,0.00019178,2]
[375262920,1753605032696,-460.0,0.00019178,2]
[375262922,1753605032705,-460.0,0.00019178,2]
[375262923,1753605032714,-460.0,0.00019178,2]
[375262925,1753605032724,-2100.68,0.00019178,2]
[375262927,1753605032733,-460.0,0.00019178,2]
[375262929,1753605032743,-460.0,0.00019178,2]
[375262932,1753605032753,-460.0,0.00019178,2]
[375262933,1753605032763,-290.68906213,0.00019178,2]
[375262935,1753605032773,-462.60076232,0.00019178,2]
[375262937,1753605032783,-460.0,0.00019178,2]
[375262939,1753605032793,-708.32,0.00019178,2]
[375262941,1753605032803,-461.9780516,0.00019178,2]
[375262944,1753605032812,-460.0,0.00019178,2]
[375262946,1753605032823,-460.0,0.00019178,2]
[375262948,1753605032832,-460.0,0.00019178,2]
[375262950,1753605032841,-460.0,0.00019178,2]
[375262951,1753605032851,-460.0,0.00019178,2]
[375262953,1753605032863,-460.0,0.00019178,2]
[375262955,1753605032873,-460.0,0.00019178,2]
[375262957,1753605032883,-460.0,0.00019178,2]
[375262959,1753605032892,-560.27666211,0.00019178,2]
[375262960,1753605032902,-460.0,0.00019178,2]
[375262961,1753605032911,-460.0,0.00019178,2]
[375262962,1753605032920,-460.0,0.00019178,2]
[375262964,1753605032930,-460.0,0.00019178,2]
[375262965,1753605032939,-460.0,0.00019178,2]
[375262966,1753605032948,-1910.8,0.00019178,2]
[375262967,1753605032958,-463.64445252,0.00019178,2]
[375262968,1753605032967,-460.0,0.00019178,2]
[375262969,1753605032976,-460.0,0.00019178,2]
[375262970,1753605032986,-460.0,0.00019178,2]
[375262971,1753605032996,-460.0,0.00019178,2]
[375262972,1753605033005,-460.0,0.00019178,2]
[375262973,1753605033015,-322.55528456,0.00019178,2]
[375262975,1753605033025,-460.0,0.00019178,2]
[375262977,1753605033035,-241.51258533,0.00019178,2]
[375262979,1753605033044,-462.69739602,0.00019178,2]
[375262980,1753605033053,-461.30391424,0.00019178,2]
[375262981,1753605033063,-460.0,0.00019178,2]
[375262982,1753605033073,-460.0,0.00019178,2]
[375262983,1753605033082,-460.0,0.00019178,2]
[375262984,1753605033092,-460.0,0.00019178,2]
[375262985,1753605033102,-460.0,0.00019178,2]
[375262986,1753605033114,-460.0,0.00019178,2]
[375262987,1753605033123,-462.89715557,0.00019178,2]
[375262988,1753605033133,-460.0,0.00019178,2]
[375262989,1753605033143,-460.0,0.00019178,2]
[375262990,1753605033154,-460.0,0.00019178,2]
[375262991,1753605033166,-460.0,0.00019178,2]
[375262992,1753605033187,-460.0,0.00019178,2]
[375262993,1753605033199,-460.0,0.00019178,2]
[375262994,1753605033209,-460.0,0.00019178,2]
[375262995,1753605033221,-460.0,0.00019178,2]
[375262996,1753605033232,-467.28211432,0.00019178,2]
[375262997,1753605033242,-460.0,0.00019178,2]
[375262998,1753605033253,-460.0,0.00019178,2]
[375262999,1753605033263,-460.0,0.00019178,2]
[375263000,1753605033274,-461.54,0.00019178,2]
[375263001,1753605033285,-460.0,0.00019178,2]
[375263002,1753605033296,-460.0,0.00019178,2]
[375263003,1753605033306,-460.0,0.00019178,2]
[375263004,1753605033317,-460.0,0.00019178,2]
[375263005,1753605033327,-460.0,0.00019178,2]
[375263006,1753605033337,-460.0,0.00019178,2]
[375263007,1753605033347,-460.0,0.00019178,2]
[375263008,1753605033357,-460.0,0.00019178,2]
[375263009,1753605033368,-460.0,0.00019178,2]
[375263010,1753605033379,-460.0,0.00019178,2]
[375263011,1753605033389,-460.0,0.00019178,2]
[375263012,1753605033400,-460.0,0.00019178,2]
[375263013,1753605033410,-460.0,0.00019178,2]
[375263014,1753605033420,-460.0,0.00019178,2]
[375263015,1753605033430,-460.0,0.00019178,2]
[375263016,1753605033441,-462.45740781,0.00019178,2]
[375263017,1753605033451,-460.0,0.00019178,2]
[375263018,1753605033465,-461.16201749,0.00019178,2]
[375263019,1753605033476,-460.0,0.00019178,2]
[375263020,1753605033487,-460.0,0.00019178,2]
[375263021,1753605033499,-460.0,0.00019178,2]
[375263022,1753605033509,-460.0,0.00019178,2]
[375263023,1753605033519,-460.0,0.00019178,2]
[375263024,1753605033529,-460.0,0.00019178,2]
[375263025,1753605033541,-460.0,0.00019178,2]
[375263026,1753605033552,-460.0,0.00019178,2]
[375263027,1753605033566,-460.0,0.00019178,2]
[375263028,1753605033576,-460.0,0.00019178,2]
[375263029,1753605033586,-460.0,0.00019178,2]
[375263030,1753605033597,-460.0,0.00019178,2]
[375263031,1753605033607,-460.0,0.00019178,2]
[375263032,1753605033618,-460.0,0.00019178,2]
[375263033,1753605033628,-460.0,0.00019178,2]
[375263034,1753605033639,-460.0,0.00019178,2]
[375263035,1753605033653,-460.0,0.00019178,2]
[375263036,1753605033663,-460.0,0.00019178,2]
[375263037,1753605033673,-460.0,0.00019178,2]
[375263038,1753605033684,-460.0,0.00019178,2]
[375263039,1753605033695,-460.0,0.00019178,2]